bitfinex-derivatives/quotes_BTCF0:USTF0_20210707
["timestamp","ask_amount","ask_price","bid_price","bid_amount"]
[1625661566255,0.50528756,34910.0,34909.0,3.5971727]
[1625661567639,0.50511792,34911.0,34909.0,3.5971727]
[1625661567880,0.50511792,34911.0,34910.0,2.17709655]
[1625661568000,0.50511792,34911.0,34910.0,2.44632655]
[1625661568120,0.50511792,34911.0,34910.0,2.45136143]
[1625661568240,0.50511792,34911.0,34910.0,3.62362994]
[1625661568481,0.50511792,34911.0,34910.0,2.45136143]
[1625661569021,1.1784751,34912.0,34910.0,3.62333271]
[1625661569264,1.1784751,34912.0,34911.0,2.1765186]
[1625661569381,1.1784751,34912.0,34911.0,2.18155364]
[1625661570281,2.18830685,34912.0,34911.0,1.17700659]
[1625661570521,1.1784751,34912.0,34911.0,6.65562693]
[1625661572384,1.1784751,34912.0,34911.0,6.92483693]
[1625661573170,0.50504065,34912.0,34911.0,6.92483693]
[1625661573832,1.17837241,34912.0,34911.0,6.92483693]
[1625661576715,1.17837241,34912.0,34911.0,7.06703693]
[1625661577678,2.18873935,34912.0,34911.0,7.06703693]
[1625661577802,2.18873935,34912.0,34911.0,6.79782693]
[1625661582549,2.18873935,34912.0,34911.0,7.06167693]
[1625661587966,2.18873935,34912.0,34911.0,6.79782693]
[1625661588625,2.20134234,34912.0,34911.0,6.79782693]
[1625661588746,3.38086998,34912.0,34911.0,6.79782693]
[1625661592173,3.38086998,34912.0,34911.0,2.32382693]
[1625661592657,3.66845998,34912.0,34911.0,2.32382693]
[1625661593256,3.66845998,34912.0,34911.0,2.55859693]
[1625661593378,2.47632935,34912.0,34911.0,3.73294082]
[1625661594159,2.18873935,34912.0,34911.0,3.73294082]
[1625661596803,2.18873935,34912.0,34911.0,5.07442789]
[1625661597044,1.17837241,34912.0,34911.0,5.07442789]
[1625661597704,2.1898325,34912.0,34911.0,5.07442789]
[1625661597946,1.17837241,34912.0,34911.0,5.07442789]
[1625661598909,0.84231588,34912.0,34911.0,5.07442789]
[1625661599214,0.33727523,34912.0,34911.0,5.07442789]
[1625661599450,0.84306089,34913.0,34911.0,5.07442789]
[1625661599689,0.50577603,34914.0,34911.0,5.07442789]
[1625661599810,0.50577603,34914.0,34912.0,0.2455774]
[1625661599930,0.50574807,34916.0,34913.0,3.00622147]
[1625661600050,0.50574807,34916.0,34913.0,3.01122308]
[1625661600171,0.50574238,34918.0,34915.0,3.005426]
[1625661600413,0.50574238,34918.0,34917.0,3.00559003]
[1625661600769,0.50574238,34918.0,34917.0,6.94329003]
[1625661600892,0.50570929,34919.0,34917.0,6.94829136]
[1625661601374,0.50570929,34919.0,34918.0,0.00500084]
[1625661601492,0.50569109,34921.0,34918.0,3.23731131]
[1625661601732,0.50574658,34922.0,34920.0,3.72330126]
[1625661601971,0.50574658,34922.0,34921.0,3.00139848]
[1625661602154,0.50574658,34922.0,34921.0,3.00639917]
[1625661604498,0.50574658,34922.0,34921.0,1.67244429]
[1625661604739,0.50574658,34922.0,34921.0,0.50523377]
[1625661605638,1.68487222,34922.0,34921.0,0.50523377]
[1625661605760,1.92544766,34922.0,34921.0,0.50523377]
[1625661605880,1.92544766,34922.0,34921.0,0.00500069]
[1625661605881,3.27284233,34922.0,34921.0,0.00500069]
[1625661606844,8.39854233,34922.0,34921.0,0.00500069]
[1625661607626,8.41124285,34922.0,34920.0,0.72172632]
[1625661607866,3.03189675,34921.0,34920.0,0.72172632]
[1625661607986,3.04459749,34921.0,34920.0,0.72172632]
[1625661608768,3.03189675,34921.0,34920.0,0.72172632]
[1625661609007,3.04459769,34921.0,34920.0,0.72172632]
[1625661609250,3.03189675,34921.0,34920.0,0.72172632]
[1625661609490,3.04459781,34921.0,34920.0,0.72172632]
[1625661610570,3.03189675,34921.0,34920.0,0.72172632]
[1625661611110,3.0445656,34921.0,34920.0,0.72172632]
[1625661611593,3.1303656,34921.0,34920.0,0.72172632]
[1625661612253,3.0445656,34921.0,34920.0,0.72172632]
[1625661614357,4.56165168,34921.0,34920.0,0.72172632]
[1625661620189,4.56165168,34921.0,34920.0,0.88873486]
[1625661621152,4.56165168,34921.0,34920.0,1.22727827]
[1625661621153,3.0445656,34921.0,34920.0,1.22727827]
[1625661621392,1.68444322,34921.0,34920.0,6.44754228]
[1625661622234,0.50540033,34921.0,34920.0,7.78080854]
[1625661623011,0.50540033,34921.0,34920.0,3.72790854]
[1625661623133,1.68581814,34921.0,34920.0,2.39464228]
[1625661623497,3.04779083,34921.0,34920.0,1.22727827]
[1625661623733,3.03495541,34921.0,34920.0,1.22727827]
[1625661623853,3.03495541,34921.0,34920.0,1.49880827]
[1625661623973,1.68581814,34921.0,34920.0,1.49880827]
[1625661624215,0.50540033,34921.0,34920.0,3.9918114]
[1625661625055,0.5058271,34922.0,34920.0,3.9918114]
[1625661625299,0.5058271,34922.0,34921.0,2.98810892]
[1625661625418,0.5058271,34922.0,34921.0,2.99306088]
[1625661627223,0.44927114,34927.0,34921.0,2.99306088]
[1625661627343,0.057,34940.0,34921.0,2.99306088]
[1625661627464,1.01642545,34931.0,34921.0,3.57766088]
[1625661627586,0.16867204,34925.0,34922.0,1.49187287]
[1625661627703,0.16867204,34925.0,34922.0,1.49680704]
[1625661627824,0.16867204,34925.0,34923.0,0.5]
[1625661627944,1.68520384,34940.0,34923.0,0.5]
[1625661627945,0.0998,34932.0,34924.0,5.35789145]
[1625661628064,1.51617153,34949.0,34925.0,0.5]
[1625661628185,0.43775872,34992.0,34925.0,0.5]
[1625661628186,0.16859808,34942.0,34931.0,1.64946169]
[1625661628307,0.89659808,34947.0,34932.0,0.5]
[1625661628425,0.00122027,34957.0,34936.0,1.64781085]
[1625661628545,0.00122027,34957.0,34948.0,3.4283]
[1625661628668,0.00122027,34957.0,34956.0,0.16454866]
[1625661628786,0.00122027,34957.0,34956.0,0.50406866]
[1625661629026,0.00122027,34957.0,34956.0,0.33952]
[1625661629866,0.00122027,34957.0,34956.0,1.06124632]
[1625661630709,0.00122027,34957.0,34956.0,2.04291365]
[1625661630890,0.00122027,34957.0,34956.0,1.06124632]
[1625661631431,0.00122027,34957.0,34956.0,1.56124632]
[1625661631671,0.00122027,34957.0,34956.0,2.03996488]
[1625661631912,0.00122027,34957.0,34956.0,1.06124632]
[1625661632631,0.00122027,34957.0,34956.0,2.03974026]
[1625661633111,0.00122027,34957.0,34956.0,1.06124632]
[1625661634916,0.00122027,34957.0,34956.0,0.72172632]
[1625661636779,0.00122027,34957.0,34956.0,0.86392632]
[1625661637979,0.24179571,34957.0,34956.0,0.86392632]
[1625661643685,0.00122027,34957.0,34956.0,0.86392632]
[1625661648490,0.99937916,34975.0,34956.0,0.86392632]
[1625661648612,0.99937916,34975.0,34957.0,0.5]
[1625661648732,0.00133639,34975.0,34957.0,0.5]
[1625661648852,0.00133639,34975.0,34957.0,0.929364]
[1625661648973,0.00133639,34975.0,34959.0,1.0]
[1625661649153,0.00133639,34975.0,34964.0,4.6991]
[1625661649392,0.00133639,34975.0,34965.0,0.08058563]
[1625661649632,0.00133639,34975.0,34964.0,4.77970293]
[1625661649878,0.00133639,34975.0,34963.0,0.08062663]
[1625661650113,0.00133639,34975.0,34969.0,0.72172632]
[1625661650233,0.00133639,34975.0,34969.0,0.96525632]
[1625661651553,0.00133639,34975.0,34969.0,0.72172632]
[1625661652454,0.00133639,34975.0,34969.0,1.04793632]
[1625661654376,0.00133639,34975.0,34969.0,1.54793632]
[1625661654858,0.00133639,34975.0,34969.0,1.04793632]
[1625661655099,0.00133639,34975.0,34969.0,1.54793632]
[1625661658163,0.00133639,34975.0,34974.0,0.48115088]
[1625661658884,0.00139445,34984.0,34974.0,0.48115088]
[1625661659005,0.00139445,34984.0,34974.0,1.76877509]
[1625661659126,0.02067612,35000.0,34974.0,2.76877509]
[1625661659244,0.02067612,35000.0,34975.0,0.00495064]
[1625661659368,0.02067612,35000.0,34978.0,0.07996506]
[1625661659485,0.02067612,35000.0,34979.0,1.0]
[1625661659605,0.02067612,35000.0,34984.0,0.07979108]
[1625661659725,0.00156862,35011.0,34990.0,1.0]
[1625661659848,0.00156862,35011.0,34990.0,1.2588]
[1625661659970,0.00156862,35011.0,34991.0,0.5]
[1625661660087,0.00156862,35011.0,35008.0,5.1326]
[1625661660207,0.00156862,35011.0,35010.0,0.96230176]
[1625661660328,0.00156862,35011.0,35010.0,1.46230176]
[1625661660450,0.49886627,35016.0,35010.0,1.46230176]
[1625661660568,0.08286929,35028.0,35010.0,1.46230176]
[1625661660569,0.05101795,35028.0,35010.0,1.46230176]
[1625661660809,0.00168474,35030.0,35010.0,0.96230176]
[1625661660928,0.00168474,35030.0,35011.0,0.428311]
[1625661661048,0.00168474,35030.0,35011.0,0.928311]
[1625661661288,0.00171377,35034.0,35012.0,0.5]
[1625661661406,0.00171377,35034.0,35013.0,0.5]
[1625661661648,0.00171377,35034.0,35015.0,1.0]
[1625661662008,0.00171377,35034.0,35016.0,0.926963]
[1625661662129,0.00171377,35034.0,35016.0,1.230353]
[1625661662250,0.24228921,35034.0,35033.0,0.48115088]
[1625661662369,0.24228921,35034.0,35033.0,0.78004088]
[1625661662850,0.24228921,35034.0,35033.0,0.63714088]
[1625661664174,0.24228921,35034.0,35029.0,0.24057544]
[1625661664772,0.24228921,35034.0,35022.0,0.24057544]
[1625661664896,0.48624921,35034.0,34988.0,1.42147994]
[1625661665019,0.48624921,35034.0,34993.0,0.63261356]
[1625661665135,0.48624921,35034.0,34991.0,0.6332084]
[1625661665136,0.54324921,35034.0,34991.0,0.6332084]
[1625661665375,0.54324921,35034.0,34990.0,0.94981261]
[1625661665495,0.54324921,35034.0,34989.0,0.63365432]
[1625661665618,0.54324921,35034.0,34988.0,0.63377791]
[1625661666099,0.54324921,35034.0,34985.0,1.10755906]
[1625661666100,0.54324921,35034.0,34989.0,0.057]
[1625661666217,0.24057544,35011.0,35010.0,0.24057544]
[1625661666337,0.51407544,35011.0,35010.0,0.24057544]
[1625661666817,0.51407544,35011.0,35010.0,7.544e-05]
[1625661666940,0.51407544,35011.0,35003.0,0.24057544]
[1625661667776,0.51407544,35011.0,34999.0,0.24057544]
[1625661668259,0.48115088,35000.0,34999.0,0.24057544]
[1625661668858,0.51407544,35011.0,34999.0,0.24057544]
[1625661668979,0.057,35026.0,34999.0,0.52413544]
[1625661669098,0.00171377,35034.0,34999.0,0.52413544]
[1625661669218,0.00171377,35034.0,35000.0,0.057]
[1625661669340,0.00171377,35034.0,35008.0,4.69]
[1625661669460,0.00171377,35034.0,35008.0,5.01304]
[1625661670300,0.24057544,35025.0,35024.0,0.24057544]
[1625661670419,0.24057544,35025.0,35024.0,0.50458544]
[1625661672344,0.24057544,35029.0,35024.0,0.50458544]
[1625661674269,0.24057544,35029.0,35028.0,0.24057544]
[1625661676734,0.24057544,35029.0,35024.0,0.24057544]
[1625661678359,0.24057544,35025.0,35024.0,0.24057544]
[1625661682443,0.24057544,35025.0,35017.0,0.24057544]
[1625661684068,0.47980544,35025.0,35012.0,0.24057544]
[1625661684311,0.24057544,35013.0,35012.0,0.24057544]
[1625661685391,0.24057544,35013.0,35009.0,0.24057544]
[1625661685512,0.24057544,35013.0,35002.0,0.24057544]
[1625661685752,0.24057544,35013.0,34987.0,0.057]
[1625661685873,0.24057544,35013.0,34982.0,0.63633065]
[1625661686233,1.23867544,35013.0,34982.0,0.63633065]
[1625661686354,0.24057544,34996.0,34995.0,0.24057544]
[1625661686717,0.50141544,34996.0,34995.0,0.24057544]
[1625661687913,0.50141544,34996.0,34991.0,0.24057544]
[1625661688275,0.24057544,34992.0,34991.0,0.24057544]
[1625661689658,0.24057544,34992.0,34988.0,0.24057544]
[1625661690317,0.24057544,34989.0,34988.0,0.24057544]
[1625661690437,0.45987544,34989.0,34988.0,0.24057544]
[1625661695964,0.45987544,34989.0,34984.0,0.24057544]
[1625661696444,0.24057544,34985.0,34984.0,0.24057544]
[1625661696806,0.09837544,34985.0,34984.0,0.24057544]
[1625661702941,0.09837544,34985.0,34978.0,0.24057544]
[1625661703058,0.33423544,34985.0,34978.0,0.24057544]
[1625661703539,0.33423544,34985.0,34975.0,5.088e-05]
[1625661703661,0.33423544,34985.0,34968.0,0.64325639]
[1625661703781,0.83423544,34985.0,34984.0,0.0014]
[1625661703901,0.83423544,34985.0,34942.0,2.25233462]
[1625661703902,0.83423544,34985.0,34963.0,0.64457815]
[1625661704044,0.83423544,34985.0,34955.0,1.45030083]
[1625661704142,0.9974696,34981.0,34955.0,1.23318777]
[1625661704264,0.5,34980.0,34952.0,0.97002195]
[1625661704443,0.96230176,34953.0,34940.0,0.057]
[1625661704562,1.17792176,34953.0,34937.0,1.297963]
[1625661704683,4.6877,34946.0,34932.0,1.30048084]
[1625661704801,4.92732,34946.0,34932.0,1.30048084]
[1625661704922,4.92732,34946.0,34931.0,1.30192882]
[1625661705163,0.23962,34946.0,34931.0,1.30192882]
[1625661705644,0.23962,34946.0,34929.0,1.30267851]
[1625661706123,0.23962,34946.0,34928.0,1.30088493]
[1625661706367,0.23962,34946.0,34927.0,1.30118822]
[1625661706487,0.24057544,34933.0,34930.0,0.24057544]
[1625661706607,0.52250544,34933.0,34930.0,0.24057544]
[1625661707449,0.52250544,34933.0,34926.0,0.24057544]
[1625661707568,0.52250544,34933.0,34923.0,1.30352868]
[1625661707809,0.52250544,34933.0,34919.0,1.305505]
[1625661708053,0.52250544,34933.0,34916.0,1.30314551]
[1625661708291,0.52250544,34933.0,34915.0,1.30342585]
[1625661708410,0.24057544,34922.0,34921.0,0.24057544]
[1625661708530,0.55619544,34922.0,34921.0,0.24057544]
[1625661708651,4.35419544,34922.0,34921.0,0.24057544]
[1625661709010,4.35419544,34922.0,34918.0,0.24057544]
[1625661709011,4.35419544,34922.0,34914.0,1.54434557]
[1625661709251,4.35419544,34922.0,34914.0,0.24057544]
[1625661709974,4.35419544,34922.0,34910.0,1.30189972]
[1625661710215,4.35419544,34922.0,34906.0,1.30372705]
[1625661710455,0.24057544,34909.0,34908.0,0.24057544]
[1625661710576,0.54425544,34909.0,34906.0,1.30372705]
[1625661710693,0.54425544,34909.0,34905.0,1.30408434]
[1625661711054,0.54425544,34909.0,34903.0,1.30486598]
[1625661711296,0.54425544,34909.0,34899.0,1.30655524]
[1625661711535,0.54425544,34909.0,34894.0,1.30840836]
[1625661711776,0.54425544,34909.0,34892.0,1.30945486]
[1625661712136,0.54425544,34909.0,34866.0,0.6479]
[1625661712137,0.54425544,34909.0,34888.0,1.30596205]
[1625661712376,0.54425544,34909.0,34886.0,1.30659023]
[1625661712496,0.96230176,34887.0,34886.0,1.30659023]
[1625661712617,1.29796176,34887.0,34883.0,1.30772904]
[1625661712857,1.29796176,34887.0,34875.0,1.6346613]
[1625661712858,1.29796176,34887.0,34881.0,1.30853179]
[1625661712977,4.3537,34885.0,34881.0,1.30853179]
[1625661713101,4.01533724,34885.0,34881.0,1.30853179]
[1625661713578,4.01533724,34885.0,34871.0,0.24057544]
[1625661713579,4.01533724,34885.0,34877.0,1.31003633]
[1625661713825,4.01533724,34885.0,34872.0,1.31200089]
[1625661714061,4.01533724,34885.0,34868.0,0.24057544]
[1625661714306,4.01533724,34885.0,34868.0,1.54794332]
[1625661714542,0.24057544,34873.0,34868.0,1.78851876]
[1625661714781,0.24057544,34876.0,34868.0,1.78851876]
[1625661714901,0.24057544,34876.0,34869.0,1.30609462]
[1625661715321,0.24057544,34876.0,34868.0,1.78694138]
[1625661715559,0.24057544,34876.0,34869.0,1.30558718]
[1625661715920,0.24057544,34876.0,34868.0,0.48115088]
[1625661716160,0.24057544,34876.0,34868.0,1.78229093]
[1625661716399,4.01533724,34885.0,34868.0,1.78229093]
[1625661716522,0.24057544,34887.0,34884.0,0.24057544]
[1625661716639,0.24057544,34887.0,34884.0,0.58634544]
[1625661716881,0.24057544,34891.0,34884.0,0.58634544]
[1625661717003,0.24057544,34895.0,34884.0,0.58634544]
[1625661718084,4.0781,34894.0,34884.0,0.58634544]
[1625661718564,4.0781,34894.0,34893.0,0.48115088]
[1625661718805,4.0781,34894.0,34884.0,0.24057544]
[1625661718924,4.37652,34894.0,34884.0,0.24057544]
[1625661720007,4.0781,34894.0,34884.0,0.24057544]
[1625661720669,4.3328,34894.0,34879.0,0.24057544]
[1625661721511,4.3328,34894.0,34861.0,0.8136961]
[1625661721630,0.5,34893.0,34861.0,0.8136961]
[1625661721875,1.0,34892.0,34859.0,0.32571586]
[1625661721992,0.5,34891.0,34859.0,0.32571586]
[1625661722295,0.5,34891.0,34856.0,0.32618274]
[1625661722534,0.24057544,34865.0,34864.0,0.24057544]
[1625661722654,0.52723544,34865.0,34864.0,0.24057544]
[1625661723317,4.19243544,34865.0,34864.0,0.24057544]
[1625661723555,4.19243544,34865.0,34857.0,0.24057544]
[1625661724577,0.48115088,34858.0,34857.0,0.24057544]
[1625661724696,0.77232088,34858.0,34857.0,0.24057544]
[1625661725177,0.77232088,34858.0,34848.0,0.1]
[1625661725418,0.5,34857.0,34848.0,0.1]
[1625661725540,0.77232088,34858.0,34848.0,0.1]
[1625661726621,0.72172632,34849.0,34848.0,0.1]
[1625661726739,0.72172632,34849.0,34838.0,0.24057544]
[1625661726859,1.06716632,34849.0,34838.0,0.24057544]
[1625661726980,1.06716632,34849.0,34834.0,0.00237544]
[1625661727101,1.06716632,34849.0,34819.0,0.32424425]
[1625661727221,1.56716632,34849.0,34814.0,0.32423066]
[1625661727463,1.56716632,34849.0,34811.0,0.057]
[1625661727703,1.06716632,34849.0,34832.0,1.2272]
[1625661727824,0.5,34848.0,34832.0,1.1965]
[1625661728066,2.06716632,34849.0,34832.0,1.1637]
[1625661728302,1.06716632,34849.0,34832.0,1.1637]
[1625661728543,1.06716632,34849.0,34832.0,0.8941]
[1625661728663,0.96230176,34833.0,34832.0,0.8941]
[1625661728786,1.23900176,34833.0,34832.0,0.8941]
[1625661728905,1.23900176,34833.0,34832.0,0.8285]
[1625661730049,1.23900176,34833.0,34832.0,0.6415]
[1625661730408,0.96230176,34833.0,34832.0,0.6415]
[1625661734015,0.96230176,34833.0,34832.0,0.94119]
[1625661734377,0.057,34863.0,34832.0,0.94119]
[1625661734503,3.6652,34865.0,34832.0,0.94119]
[1625661734619,0.24057544,34856.0,34855.0,0.24057544]
[1625661734736,0.24057544,34856.0,34851.0,0.24057544]
[1625661734861,0.24057544,34856.0,34832.0,0.94119]
[1625661735641,0.45376544,34856.0,34832.0,0.6415]
[1625661736662,0.24057544,34840.0,34839.0,0.24057544]
[1625661737145,0.24057544,34856.0,34839.0,0.24057544]
[1625661737265,0.24057544,34856.0,34839.0,0.47326544]
[1625661738649,0.24057544,34848.0,34847.0,0.24057544]
[1625661739368,0.24057544,34848.0,34839.0,0.24057544]
[1625661739608,0.54370544,34848.0,34839.0,0.15477544]
[1625661739732,0.54370544,34848.0,34835.0,0.19635088]
[1625661740150,0.54370544,34848.0,34832.0,0.88207544]
[1625661740271,0.54370544,34848.0,34832.0,0.6415]
[1625661740389,0.5,34847.0,34832.0,0.6415]
[1625661740629,0.72172632,34833.0,34832.0,0.6415]
[1625661743219,1.0847,34863.0,34832.0,0.6415]
[1625661743341,0.5,34855.0,34832.0,0.90956]
[1625661743941,0.5,34855.0,34820.0,0.30715]
[1625661744061,3.6817,34832.0,34800.0,0.063]
[1625661744182,4.46022,34832.0,34800.0,0.006]
[1625661744424,3.96022,34832.0,34800.0,0.006]
[1625661744664,0.24057544,34812.0,34811.0,0.24057544]
[1625661744905,0.24057544,34815.0,34811.0,0.24057544]
[1625661745025,0.33295,34816.0,34811.0,0.24057544]
[1625661746468,0.24057544,34819.0,34811.0,0.24057544]
[1625661746708,0.24057544,34812.0,34811.0,0.24057544]
[1625661746828,0.54879544,34812.0,34811.0,0.24057544]
[1625661747068,0.54879544,34812.0,34807.0,0.24057544]
[1625661747553,0.54879544,34812.0,34804.0,0.24057544]
[1625661747910,0.54879544,34812.0,34800.0,0.24657544]
[1625661748029,0.54879544,34812.0,34767.0,0.32151948]
[1625661748152,1.04879544,34812.0,34767.0,0.32151948]
[1625661748271,1.04879544,34812.0,34764.0,0.057]
[1625661748272,0.9204,34811.0,34764.0,0.057]
[1625661748392,0.9204,34811.0,34768.0,0.00494774]
[1625661748513,1.4204,34811.0,34768.0,0.00494774]
[1625661748634,4.4567,34795.0,34765.0,0.00494941]
[1625661748752,4.4567,34795.0,34781.0,0.24057544]
[1625661748753,0.24057544,34782.0,34781.0,0.24057544]
[1625661748876,0.46969544,34782.0,34781.0,0.24057544]
[1625661749420,0.46969544,34782.0,34747.0,0.9852]
[1625661749532,0.46969544,34782.0,34745.0,0.8031458]
[1625661749655,0.46969544,34782.0,34739.0,0.1]
[1625661750012,0.46969544,34782.0,34740.0,0.01343478]
[1625661750496,0.46969544,34782.0,34741.0,0.429692]
[1625661750734,0.24057544,34766.0,34765.0,0.24057544]
[1625661750854,0.49680544,34766.0,34765.0,0.24057544]
[1625661751334,0.25623,34766.0,34765.0,0.24057544]
[1625661752294,0.46969544,34782.0,34765.0,0.24057544]
[1625661752658,0.24057544,34782.0,34765.0,0.24057544]
[1625661752779,0.24057544,34782.0,34779.0,0.24057544]
[1625661753736,7.544e-05,34782.0,34779.0,0.24057544]
[1625661753860,0.9155,34794.0,34779.0,0.24057544]
[1625661754702,0.9155,34794.0,34793.0,0.24057544]
[1625661754822,0.24057544,34795.0,34793.0,0.57813544]
[1625661755182,0.24057544,34799.0,34793.0,0.57813544]
[1625661755306,0.938,34831.0,34793.0,0.57813544]
[1625661755545,0.525,34831.0,34793.0,0.57813544]
[1625661755665,0.0872,34839.0,34794.0,0.5]
[1625661755783,3.6652,34865.0,34794.0,0.5]
[1625661755902,3.6652,34865.0,34795.0,0.057]
[1625661756024,0.557,34864.0,34799.0,1.0]
[1625661756142,0.5,34864.0,34802.0,1.0]
[1625661756263,0.5,34864.0,34803.0,0.057]
[1625661756508,3.6652,34865.0,34803.0,0.057]
[1625661756509,0.5,34855.0,34803.0,0.057]
[1625661756624,1.0,34852.0,34802.0,0.20995]
[1625661756744,0.24057544,34823.0,34822.0,0.24057544]
[1625661756863,0.24057544,34823.0,34811.0,0.24057544]
[1625661756983,0.74057544,34823.0,34811.0,0.24057544]
[1625661757102,0.24057544,34823.0,34811.0,0.24057544]
[1625661757343,0.74057544,34823.0,34811.0,0.24057544]
[1625661757464,0.74057544,34823.0,34779.0,0.9456]
[1625661757465,0.96572544,34823.0,34779.0,0.057]
[1625661757946,0.96572544,34823.0,34761.0,2.13906429]
[1625661758064,0.057,34822.0,34761.0,2.13906429]
[1625661758184,0.057,34822.0,34761.0,1.8164]
[1625661758302,0.057,34822.0,34762.0,0.56194716]
[1625661758426,0.9449,34821.0,34762.0,0.56194716]
[1625661758546,0.557,34820.0,34762.0,0.56194716]
[1625661758667,0.557,34820.0,34763.0,0.0049476]
[1625661758788,0.24057544,34795.0,34794.0,0.24057544]
[1625661758904,0.54500544,34795.0,34794.0,0.24057544]
[1625661760048,0.54500544,34795.0,34791.0,0.24057544]
[1625661760168,0.54500544,34795.0,34787.0,0.24057544]
[1625661760287,0.54500544,34795.0,34765.0,0.057]
[1625661760406,0.54500544,34795.0,34748.0,0.80932754]
[1625661760527,0.54500544,34795.0,34749.0,0.057]
[1625661760647,0.54500544,34795.0,34746.0,0.32377126]
[1625661760768,0.78558088,34795.0,34784.0,0.24057544]
[1625661762451,0.78558088,34795.0,34780.0,0.24057544]
[1625661762814,0.24057544,34781.0,34780.0,0.24057544]
[1625661762935,0.57776544,34781.0,34780.0,0.24057544]
[1625661766664,0.24057544,34781.0,34780.0,0.24057544]
[1625661767501,0.24057544,34794.0,34780.0,0.24057544]
[1625661767624,0.5,34815.0,34780.0,0.58302544]
[1625661767742,0.057,34815.0,34780.0,0.58302544]
[1625661768583,1.4886,34808.0,34780.0,0.58302544]
[1625661768827,0.24057544,34791.0,34789.0,0.24057544]
[1625661768947,0.56760544,34791.0,34789.0,0.24057544]
[1625661769063,0.56760544,34791.0,34782.0,0.24057544]
[1625661770864,0.24057544,34785.0,34782.0,0.24057544]
[1625661770984,0.56760544,34791.0,34782.0,0.24057544]
[1625661771344,0.24057544,34791.0,34782.0,0.55679544]
[1625661772785,0.24057544,34796.0,34790.0,0.24057544]
[1625661772906,0.24057544,34796.0,34790.0,0.46434544]
[1625661774837,0.24057544,34796.0,34795.0,0.24057544]
[1625661776758,0.24057544,34796.0,34795.0,0.24559323]
[1625661777540,0.24057544,34804.0,34795.0,0.24559323]
[1625661777900,0.24057544,34804.0,34796.0,0.00501763]
[1625661778920,0.24057544,34797.0,34796.0,0.00501763]
[1625661781388,0.24057544,34802.0,34796.0,0.00501763]
[1625661781513,1.22917544,34808.0,34796.0,0.29599763]
[1625661781629,0.24057544,34808.0,34796.0,0.29599763]
[1625661781872,1.0001,34823.0,34796.0,0.29599763]
[1625661781989,1.0001,34823.0,34797.0,0.00500236]
[1625661782832,1.0001,34823.0,34822.0,0.72172632]
[1625661782952,1.0001,34823.0,34822.0,1.05445632]
[1625661783192,0.24057544,34826.0,34822.0,1.05445632]
[1625661784150,0.24057544,34826.0,34822.0,0.81388088]
[1625661784880,0.24057544,34824.0,34822.0,0.81388088]
[1625661787275,0.24057544,34824.0,34822.0,0.48115088]
[1625661787638,0.24057544,34830.0,34822.0,0.48115088]
[1625661787758,0.24057544,34830.0,34822.0,0.78340088]
[1625661788538,0.24057544,34833.0,34822.0,0.78340088]
[1625661788660,0.9441,34838.0,34822.0,0.78340088]
[1625661788901,0.9441,34838.0,34837.0,0.24057544]
[1625661789020,0.24057544,34841.0,34837.0,0.24057544]
[1625661789382,0.49488924,34840.0,34837.0,0.24057544]
[1625661789620,0.16498753,34839.0,34837.0,0.24057544]
[1625661790343,0.49486303,34840.0,34837.0,0.24057544]
[1625661790584,0.16497889,34839.0,34833.0,0.24057544]
[1625661790703,0.66497889,34839.0,34822.0,0.24057544]
[1625661790827,1.1529122,34838.0,34822.0,0.24057544]
[1625661790943,0.48115088,34823.0,34822.0,0.24057544]
[1625661791065,0.75108088,34823.0,34822.0,0.24057544]
[1625661792747,0.75108088,34823.0,34816.0,0.24057544]
[1625661792986,0.24057544,34817.0,34816.0,0.24057544]
[1625661801826,0.16505778,34821.0,34816.0,0.24057544]
[1625661802068,0.49580285,34822.0,34816.0,0.24057544]
[1625661802311,0.16545558,34821.0,34816.0,0.24057544]
[1625661802486,0.49591313,34822.0,34816.0,0.24057544]
[1625661802725,0.49616244,34821.0,34816.0,0.24057544]
[1625661802965,0.49616244,34821.0,34820.0,0.24057544]
[1625661803204,0.16544257,34821.0,34820.0,0.24057544]
[1625661803504,0.49620162,34821.0,34820.0,0.24057544]
[1625661804467,0.49595586,34821.0,34820.0,0.24057544]
[1625661804707,1.15740044,34821.0,34820.0,0.24057544]
[1625661805427,2.14958683,34821.0,34820.0,0.24057544]
[1625661808742,2.16232088,34821.0,34820.0,0.24057544]
[1625661809463,1.17013449,34821.0,34820.0,0.24057544]
[1625661809582,1.15740044,34821.0,34820.0,0.24057544]
[1625661809946,1.24310044,34821.0,34820.0,0.24057544]
[1625661811205,1.53260044,34821.0,34820.0,0.24057544]
[1625661811448,1.54533441,34821.0,34820.0,0.24057544]
[1625661811572,2.53844692,34821.0,34820.0,0.24057544]
[1625661811811,1.54533441,34821.0,34820.0,0.24057544]
[1625661812051,2.53849766,34821.0,34820.0,0.24057544]
[1625661812290,1.54533441,34821.0,34820.0,0.24057544]
[1625661812531,2.53881765,34821.0,34820.0,0.24057544]
[1625661813252,2.45311765,34821.0,34820.0,0.24057544]
[1625661813612,2.44038368,34821.0,34820.0,0.24057544]
[1625661813855,0.78545586,34821.0,34820.0,0.24057544]
[1625661813973,0.49595586,34821.0,34820.0,0.24057544]
[1625661814093,0.82752151,34821.0,34820.0,0.24057544]
[1625661814334,0.49743865,34821.0,34820.0,0.24057544]
[1625661815536,0.82877752,34821.0,34820.0,0.24057544]
[1625661817217,0.49721187,34821.0,34820.0,0.48115088]
[1625661817459,0.82887788,34821.0,34820.0,0.48115088]
[1625661818181,0.49785475,34822.0,34820.0,0.74100727]
[1625661818423,0.24057544,34823.0,34820.0,0.74100727]
[1625661818661,0.24057544,34823.0,34821.0,0.00500572]
[1625661818780,0.49821376,34826.0,34821.0,0.00500572]
[1625661818902,0.4980478,34827.0,34821.0,0.00500572]
[1625661818903,0.49837747,34827.0,34821.0,0.00500572]
[1625661819143,0.16618116,34827.0,34826.0,0.48115088]
[1625661819626,0.49836923,34827.0,34826.0,0.48115088]
[1625661820103,0.51112008,34827.0,34826.0,0.48615437]
[1625661820346,0.51075316,34827.0,34826.0,0.48115088]
[1625661820703,1.17482707,34827.0,34826.0,0.48115088]
[1625661821485,2.17065586,34827.0,34826.0,0.48115088]
[1625661821605,2.25675586,34827.0,34826.0,0.48115088]
[1625661821724,1.17482707,34827.0,34826.0,0.24045088]
[1625661821846,1.17482707,34827.0,34826.0,0.19625088]
[1625661821968,2.17032655,34827.0,34826.0,0.19625088]
[1625661824009,1.17482707,34827.0,34826.0,0.19625088]
[1625661824488,2.17162257,34827.0,34826.0,0.19625088]
[1625661824730,2.15887172,34827.0,34826.0,0.19625088]
[1625661825091,2.49009348,34827.0,34826.0,0.19625088]
[1625661825333,4.97899803,34827.0,34826.0,0.19625088]
[1625661826531,4.97899803,34827.0,34811.0,0.50403743]
[1625661826654,2.15596026,34821.0,34812.0,0.16800847]